bitfinex-derivatives/quotes_ETHF0:USTF0_20241207
["timestamp","ask_amount","ask_price","bid_price","bid_amount"]
[1733591611067,1.27926767,3993.9,3993.8,0.1751]
[1733591612250,0.377,3993.9,3993.8,0.1751]
[1733591612857,0.5521,3993.9,3993.8,0.1751]
[1733591613157,6.26309026,3993.9,3993.8,0.1751]
[1733591614055,0.94899,3994.0,3993.9,0.1751]
[1733591614056,5.88609026,3994.0,3993.9,0.1751]
[1733591614256,7.86727476,3994.4,3993.7,3.2078]
[1733591614257,5.88609026,3994.3,3993.7,3.2078]
[1733591614549,4.90459687,3994.0,3993.8,1.31146767]
[1733591614754,6.28549026,3994.4,3993.8,1.31146767]
[1733591614954,4.90459011,3994.0,3993.8,1.48656767]
[1733591615150,4.90459011,3994.0,3993.9,0.1751]
[1733591615351,6.28549026,3994.4,3994.3,0.17508]
[1733591616551,0.3994,3994.4,3994.3,0.17508]
[1733591616871,2.94250408,3994.4,3994.3,0.17508]
[1733591617154,2.94250408,3994.5,3994.4,0.17507]
[1733591617659,6.15030408,3994.6,3994.5,0.17507]
[1733591617962,3.2078,3994.6,3994.5,0.17507]
[1733591622857,4.11820408,3994.8,3994.7,0.17506]
[1733591622858,4.29326408,3994.8,3994.7,0.17506]
[1733591623153,4.11820408,3994.8,3994.7,0.17506]
[1733591623353,4.29326408,3994.8,3994.7,0.17506]
[1733591623559,4.11820408,3994.8,3994.7,0.17506]
[1733591623757,1.1757,3994.8,3994.7,0.17506]
[1733591623956,0.17506,3994.7,3994.6,0.17506]
[1733591624760,0.17507,3994.6,3994.5,0.17507]
[1733591624950,0.17507,3994.6,3994.4,0.17507]
[1733591625156,0.17507,3994.4,3994.3,0.58538]
[1733591625355,0.17507,3994.4,3994.3,0.17508]
[1733591626071,0.17509,3994.1,3994.0,0.17509]
[1733591626660,0.8128,3994.1,3994.0,0.17509]
[1733591627765,0.98789,3994.1,3994.0,0.17509]
[1733591628662,0.8128,3994.1,3994.0,0.17509]
[1733591628967,0.98789,3994.1,3994.0,0.17509]
[1733591629166,0.8128,3994.1,3994.0,0.17509]
[1733591629859,0.8128,3994.1,3994.0,1.07735767]
[1733591630063,0.4154,3994.1,3994.0,1.07735767]
[1733591630265,5.31392653,3994.1,3994.0,0.17509]
[1733591630462,0.4154,3994.1,3994.0,0.17509]
[1733591641570,0.59049,3994.1,3994.0,0.17509]
[1733591641876,0.4154,3994.1,3994.0,0.17509]
[1733591642474,0.59049,3994.1,3994.0,0.17509]
[1733591642678,0.4154,3994.1,3994.0,0.17509]
[1733591642868,0.59049,3994.1,3994.0,0.17509]
[1733591650487,0.4154,3994.1,3993.7,3.2078]
[1733591650691,5.07862961,3993.8,3993.7,3.3829]
[1733591650992,4.90352961,3993.8,3993.7,3.3829]
[1733591651491,5.29712961,3993.8,3993.7,3.3829]
[1733591652186,5.29735623,3993.8,3993.7,3.3829]
[1733591652395,5.29737567,3993.8,3993.7,3.3829]
[1733591652581,0.3936,3993.8,3993.7,3.3829]
[1733591652892,0.3936,3993.8,3993.7,0.1751]
[1733591653487,5.29770365,3993.8,3993.7,0.1751]
[1733591653694,5.29777632,3993.8,3993.7,0.1751]
[1733591653892,0.3936,3993.8,3993.7,0.1751]
[1733591655293,0.5687,3993.8,3993.7,0.1751]
[1733591656289,0.3936,3993.8,3993.5,3.92936403]
[1733591656488,0.55621,3993.7,3993.6,0.1751]
[1733591656691,0.5562,3993.7,3993.6,0.1751]
[1733591657691,3.49872024,3993.7,3993.6,0.1751]
[1733591658196,3.32362024,3993.7,3993.6,0.1751]
[1733591658586,3.49872024,3993.7,3993.6,0.1751]
[1733591661294,5.4604004,3993.7,3993.6,0.1751]
[1733591662797,5.4604004,3993.7,3993.3,0.378]
[1733591662798,0.17512,3993.5,3993.4,0.17511]
[1733591662995,1.07738767,3993.5,3993.4,0.17511]
[1733591663492,1.48608767,3993.5,3993.4,0.17511]
[1733591665191,1.31096767,3993.5,3993.4,0.17511]
[1733591665388,1.48607767,3993.5,3993.4,0.17511]
[1733591666298,1.31096767,3993.5,3993.4,0.17511]
[1733591666601,1.48607767,3993.5,3993.4,0.17511]
[1733591667698,1.31096767,3993.5,3993.4,0.17511]
[1733591667897,1.48607767,3993.5,3993.4,0.17511]
[1733591668194,6.21497787,3993.5,3993.4,0.17511]
[1733591668497,1.31096767,3993.5,3993.4,0.17511]
[1733591668697,6.21497787,3993.5,3993.4,0.17511]
[1733591669198,1.31096767,3993.5,3993.4,5.37384951]
[1733591669900,1.31096767,3993.5,3993.4,0.17511]
[1733591670196,1.31096767,3993.5,3993.4,5.37445258]
[1733591670502,1.31096767,3993.5,3993.4,0.17511]
[1733591670695,1.48607767,3993.5,3993.4,4.11133415]
[1733591670893,1.48607767,3993.5,3993.4,0.17511]
[1733591671089,1.48607767,3993.5,3993.4,4.1113256]
[1733591672802,1.31096767,3993.5,3993.4,4.1113256]
[1733591673904,1.48607767,3993.5,3993.4,0.17511]
[1733591674104,1.48607767,3993.5,3993.4,4.1113256]
[1733591674399,1.31096767,3993.5,3993.4,0.17511]
[1733591674801,1.48607767,3993.5,3993.4,0.17511]
[1733591675701,1.31096767,3993.5,3993.4,0.17511]
[1733591675903,1.48607767,3993.5,3993.4,0.17511]
[1733591676201,1.31096767,3993.5,3993.4,0.17511]
[1733591676404,1.48607767,3993.5,3993.4,0.17511]
[1733591676598,1.31096767,3993.5,3993.4,0.17511]
[1733591676904,1.48607767,3993.5,3993.4,0.17511]
[1733591677999,1.31096767,3993.5,3993.4,0.17511]
[1733591679303,0.4087,3993.5,3993.4,0.17511]
[1733591687010,6.15002786,3993.8,3993.4,3.9362156]
[1733591687205,4.82523816,3994.0,3993.4,3.9362156]
[1733591687206,2.94222786,3993.9,3993.5,3.9362156]
[1733591687411,2.94222786,3993.9,3993.8,0.1751]
[1733591687607,4.24889553,3994.0,3993.9,0.1751]
[1733591688006,1.48175767,3994.0,3993.9,0.1751]
[1733591688210,5.40472816,3994.0,3993.9,0.1751]
[1733591688710,1.30666767,3994.0,3993.7,0.1751]
[1733591688910,4.11006767,3993.8,3993.7,0.1751]
[1733591689507,0.17511,3993.7,3993.6,0.1751]
[1733591689703,3.11798472,3993.7,3993.6,0.1751]
[1733591690423,0.17511,3993.7,3993.6,0.1751]
[1733591690623,3.11814981,3993.7,3993.6,0.1751]
[1733591690811,2.94303981,3993.7,3993.6,0.1751]
[1733591691414,3.92380042,3993.7,3993.6,0.17511]
[1733591692119,3.92380042,3993.7,3993.5,0.3915]
[1733591692120,0.17511,3993.6,3993.5,0.56661]
[1733591692315,0.17512,3993.5,3993.4,0.17511]
[1733591692513,1.48717767,3993.5,3993.4,0.17511]
[1733591692920,1.31206767,3993.5,3993.4,0.17511]
[1733591694713,5.23586809,3993.5,3993.4,0.17511]
[1733591694916,5.41097809,3993.5,3993.4,0.17511]
[1733591695311,5.23586809,3993.5,3993.1,4.3500156]
[1733591695516,0.3947,3993.4,3993.3,0.17512]
[1733591697418,0.56982,3993.4,3993.3,0.17512]
[1733591698012,4.49362042,3993.4,3993.3,0.17512]
[1733591698917,0.17513,3993.3,3993.2,0.17512]
[1733591701420,0.17513,3993.2,3993.1,0.17513]
[1733591701622,1.07739767,3993.2,3993.1,0.17513]
[1733591702818,0.90226767,3993.2,3993.1,0.17513]
[1733591703314,0.17514,3993.0,3992.8,0.17514]
[1733591703517,0.90226767,3992.9,3992.8,0.17514]
[1733591703722,1.30936767,3992.9,3992.8,0.17514]
[1733591706326,1.30936767,3992.9,3992.8,5.30017087]
[1733591708023,1.30936767,3992.9,3992.8,0.17514]
[1733591708419,1.30936767,3992.9,3992.8,4.11333398]
[1733591711532,1.71806767,3992.9,3992.8,4.11333398]
[1733591714239,0.90226767,3992.9,3992.8,4.11333398]
[1733591714427,0.90226767,3992.9,3992.8,0.17514]
[1733591714623,4.82725931,3992.9,3992.8,0.17514]
[1733591714832,0.90226767,3992.9,3992.8,0.17514]
[1733591716140,0.90226767,3993.0,3992.7,0.7763]
[1733591716438,0.90226767,3993.0,3992.9,0.17514]
[1733591720531,5.81258037,3993.0,3992.9,0.17514]
[1733591720730,0.90226767,3993.0,3992.9,0.17514]
[1733591721032,5.81258037,3993.0,3992.9,0.17514]
[1733591721431,5.81258037,3993.0,3992.9,5.29752368]
[1733591721432,0.90226767,3993.0,3992.9,5.29752368]
[1733591721836,1.07740767,3993.0,3992.9,5.29752368]
[1733591722133,1.07740767,3993.0,3992.9,4.11224765]
[1733591725745,1.07740767,3993.0,3992.9,0.17514]
[1733591726538,1.07740767,3993.0,3992.9,4.11224765]
[1733591728343,1.07740767,3993.0,3992.9,0.17514]
[1733591728540,1.07740767,3993.0,3992.9,4.11224765]
[1733591729543,1.07740767,3993.0,3992.9,0.17514]
[1733591731238,1.07740767,3993.0,3992.7,3.93710765]
[1733591731239,0.17514,3992.9,3992.8,0.17514]
[1733591735246,0.17514,3992.9,3992.8,4.11224765]
[1733591735446,0.17514,3992.9,3992.8,0.17514]
[1733591740049,0.17515,3992.8,3992.7,0.17515]
[1733591740249,0.56445,3992.8,3992.7,0.17515]
[1733591743751,0.56445,3992.8,3992.7,5.3017306]
[1733591745758,0.94135,3992.8,3992.7,5.3017306]
[1733591747759,0.94135,3992.8,3992.7,11.03807022]
[1733591748057,3.8882285,3992.8,3992.7,11.03889547]
[1733591748359,3.8882285,3992.8,3992.7,11.21404547]
[1733591749352,3.8882285,3992.8,3992.7,11.03889547]
[1733591749750,3.8882285,3992.8,3992.7,11.21404547]
[1733591751552,3.8882285,3992.8,3992.7,5.30255585]
[1733591751755,0.94135,3992.8,3992.7,0.17515]
[1733591752954,0.94135,3992.8,3992.4,0.3999]
[1733591752955,0.17515,3992.7,3992.6,0.17515]
[1733591753262,1.28416767,3992.7,3992.6,0.17515]
[1733591754361,1.45931767,3992.7,3992.6,0.17515]
[1733591756460,0.17516,3992.6,3992.5,0.17515]
[1733591758259,1.45931767,3992.7,3992.6,0.17515]
[1733591758859,4.40482111,3992.7,3992.6,3.94065456]
[1733591759058,4.40482111,3992.7,3992.6,4.11580456]
[1733591760564,4.40482111,3992.7,3992.6,3.94065456]
[1733591760864,4.40482111,3992.7,3992.4,6.31138962]
[1733591760865,0.17515,3992.6,3992.5,4.11581456]
[1733591761061,3.12066728,3992.6,3992.5,4.11581456]
[1733591761363,3.12066728,3992.6,3992.4,4.34055456]
[1733591761364,3.2078,3992.6,3992.4,4.34055456]
[1733591761557,0.17516,3992.5,3992.4,0.57506]
[1733591761757,3.12050198,3992.5,3992.4,0.17516]
[1733591761951,3.12050198,3992.5,3992.4,4.51551456]
[1733591762157,3.12050198,3992.5,3992.4,0.17516]
[1733591763062,0.17516,3992.4,3992.3,4.11581456]
[1733591763265,4.02280102,3992.4,3992.3,4.11581456]
[1733591763561,1.07742767,3992.4,3992.3,4.11581456]
[1733591763766,4.02280102,3992.4,3992.3,4.11581456]
[1733591764063,1.07742767,3992.4,3992.3,4.11581456]
[1733591764256,0.17516,3992.4,3992.3,4.11581456]
[1733591764462,1.07742767,3992.4,3992.3,4.11581456]
[1733591766661,4.02280102,3992.4,3992.3,0.17516]
[1733591766869,1.07742767,3992.4,3992.3,0.17516]
[1733591767260,0.17517,3992.3,3992.2,0.17517]
[1733591767558,1.07742767,3992.4,3992.3,0.17517]
[1733591767766,5.98638327,3992.4,3992.3,0.17517]
[1733591768064,1.07742767,3992.4,3992.3,0.17517]
[1733591768767,0.90226767,3992.4,3992.3,0.17517]
[1733591769269,5.81169015,3992.4,3992.3,0.17517]
[1733591769967,5.98685015,3992.4,3992.3,0.17517]
[1733591771165,1.07742767,3992.4,3992.3,0.17517]
[1733591771768,5.98915431,3992.4,3992.3,0.17517]
[1733591773867,1.07742767,3992.4,3992.3,5.30033352]
[1733591774672,1.07742767,3992.4,3992.3,11.21182314]
[1733591775574,1.07742767,3992.4,3992.3,11.21185269]
[1733591775869,1.32789165,3992.4,3992.3,11.21185269]
[1733591778367,1.32789165,3992.4,3992.3,5.30036307]
[1733591781780,1.32789165,3992.4,3992.3,0.17517]
[1733591787393,5.25660682,3992.4,3992.3,0.17517]
[1733591787678,5.25660682,3992.4,3992.1,3.93885376]
[1733591787679,0.17517,3992.2,3992.1,3.93885376]
[1733591787884,5.97329838,3992.4,3992.0,0.17517]
[1733591787885,0.17518,3992.1,3992.0,0.17517]
[1733591788074,1.07744767,3992.1,3992.0,0.17517]
[1733591788277,0.17518,3992.0,3991.9,0.17518]
[1733591788481,3.12240889,3992.0,3991.9,0.17518]
[1733591788985,0.17519,3991.8,3991.7,0.17519]
[1733591789183,1.07745767,3991.8,3991.7,0.17519]
[1733591789577,1.48375767,3991.8,3991.7,0.17519]
[1733591789885,1.88315767,3991.8,3991.7,0.17519]
[1733591791088,0.1752,3991.6,3991.5,0.1752]
[1733591792190,1.07746767,3991.6,3991.5,0.1752]
[1733591795686,0.90226767,3991.6,3991.1,0.3855]
[1733591795888,0.90226767,3991.2,3991.1,0.56072]
[1733591796287,1.70246767,3991.2,3991.1,0.56072]
[1733591796985,1.70246767,3991.2,3991.1,13.15652064]
[1733591797190,1.70246767,3991.2,3991.1,23.40049859]
[1733591797394,1.70246767,3991.2,3991.1,13.15652064]
[1733591799492,1.70246767,3991.2,3991.1,13.15576658]
[1733591799793,1.70246767,3991.2,3991.1,5.2964646]
[1733591802090,1.70246767,3991.2,3991.1,0.17522]
[1733591802286,1.70246767,3991.2,3991.1,5.29558586]
[1733591803996,1.70246767,3991.2,3991.1,0.17522]
[1733591804194,4.64715676,3991.2,3991.1,0.17522]
[1733591807692,1.70246767,3991.2,3991.1,0.17522]
[1733591810395,1.95298059,3991.2,3991.1,0.17522]
[1733591810591,4.89616113,3991.2,3991.1,0.17522]
[1733591810791,4.8961363,3991.2,3991.1,0.17522]
[1733591810992,1.95298059,3991.2,3991.1,0.17522]
[1733591811293,1.15278059,3991.2,3991.1,0.17522]
[1733591811693,4.09575378,3991.2,3991.1,0.17522]
[1733591812094,1.15278059,3991.2,3991.1,0.17522]
[1733591812502,0.90226767,3991.2,3991.1,0.17522]
[1733591812691,0.90226767,3991.2,3991.1,0.55092]
[1733591813089,0.8156,3991.6,3991.1,0.3757]
[1733591813300,0.8156,3991.6,3991.5,0.1752]
[1733591815198,1.71786767,3991.6,3991.5,0.1752]
[1733591817702,0.17521,3991.4,3991.3,0.17521]
[1733591818005,0.90226767,3991.4,3991.3,0.17521]
[1733591818705,0.17523,3991.0,3990.7,0.17523]
[1733591818903,0.17523,3991.0,3990.7,0.58473]
[1733591818904,0.90226767,3990.8,3990.7,0.58473]
[1733591825307,1.46359767,3990.8,3990.7,0.58473]
[1733591825506,1.28836767,3990.8,3990.7,0.58473]
[1733591826104,1.28836767,3990.8,3990.1,3.64596]
[1733591826404,2.9391312,3990.4,3990.3,0.3925]
[1733591826605,6.19618282,3990.8,3990.5,0.17525]
[1733591826606,4.09405845,3990.6,3990.5,0.17525]
[1733591827005,0.17525,3990.5,3990.4,0.17525]
[1733591827201,0.94165,3990.5,3990.4,0.17525]
[1733591827409,0.7664,3990.5,3990.3,0.3925]
[1733591827608,0.17525,3990.4,3990.3,0.56775]
[1733591828214,3.11437488,3990.4,3990.3,0.56775]
[1733591828417,0.17525,3990.4,3990.3,0.56775]
[1733591828606,1.07751767,3990.4,3990.3,0.56775]
[1733591829104,0.90226767,3990.4,3990.3,0.56775]
[1733591829909,4.68560838,3990.5,3990.3,0.3925]
[1733591830109,0.90226767,3990.4,3990.3,0.56775]
[1733591831007,1.29996767,3990.4,3990.3,0.56775]
[1733591831504,3.91920838,3990.5,3990.4,0.17525]
[1733591831713,4.82147605,3990.5,3990.4,0.17525]
[1733591832313,1.29996767,3990.5,3990.4,0.17525]
[1733591832716,5.22071688,3990.5,3990.4,0.17525]
[1733591832918,5.22070987,3990.5,3990.4,0.17525]
[1733591833515,5.22133286,3990.5,3990.4,0.17525]
[1733591834119,1.29996767,3990.5,3990.4,0.17525]
[1733591835414,1.29996767,3990.5,3990.4,4.11023488]
[1733591836617,1.29996767,3990.5,3990.4,0.17525]
[1733591837417,1.29996767,3990.5,3990.4,4.11023488]
[1733591837615,1.29996767,3990.5,3990.4,0.17525]
[1733591837813,1.29996767,3990.5,3990.4,4.11023488]
[1733591838018,1.29996767,3990.5,3990.4,0.17525]
[1733591838719,1.29996767,3990.5,3990.4,4.11023488]
[1733591838915,1.29996767,3990.5,3990.4,0.17525]
[1733591839318,1.29996767,3990.5,3990.4,4.11023488]
[1733591839815,1.29996767,3990.5,3990.4,0.17525]
[1733591840218,1.29996767,3990.5,3990.4,4.11023488]
[1733591840418,1.29996767,3990.5,3990.4,0.17525]
[1733591841212,5.22139034,3990.5,3990.4,0.17525]
[1733591841418,4.82369034,3990.5,3990.4,0.17525]
[1733591841918,0.90226767,3990.5,3990.4,0.17525]
[1733591843420,4.82369034,3990.5,3990.4,0.17525]
[1733591844825,0.90226767,3990.5,3990.4,0.17525]
[1733591845031,4.82369034,3990.5,3990.4,0.17525]
[1733591847225,0.90226767,3990.5,3990.4,0.17525]
[1733591847434,5.98533282,3990.5,3990.4,0.17525]
[1733591847924,5.98533282,3990.5,3990.1,3.5919]
[1733591848127,0.96095,3990.4,3990.3,0.17525]
[1733591848531,5.86876515,3990.4,3990.3,0.17525]
[1733591848728,5.69351515,3990.4,3990.3,0.17525]
[1733591848931,5.86876515,3990.4,3990.3,0.17525]
[1733591849122,5.86876515,3990.4,3990.1,3.5919]
[1733591849318,0.96095,3990.4,3990.2,3.93698061]
[1733591849624,0.96095,3990.4,3990.2,4.11224061]
[1733591849625,0.4061,3990.3,3990.2,4.11224061]
[1733591849923,1.30836767,3990.3,3990.2,4.11224061]
[1733591850227,1.48362767,3990.3,3990.1,4.11224061]
[1733591850423,0.17526,3990.2,3990.1,4.11224061]
[1733591850619,1.30836767,3990.3,3990.0,3.93698061]
[1733591850923,0.58136,3990.3,3990.2,0.17526]
[1733591851125,1.48362767,3990.3,3990.2,0.17526]
[1733591851324,1.30836767,3990.3,3990.2,0.17526]
[1733591851721,1.48361767,3990.3,3990.2,0.17526]
[1733591852126,1.48361767,3990.3,3990.1,0.17526]
[1733591852328,1.48361767,3990.3,3990.2,0.17526]
[1733591854229,1.48361767,3990.3,3989.9,3.93698061]
[1733591854430,1.48361767,3990.3,3990.1,0.17526]
[1733591854837,0.17526,3990.2,3990.1,0.17526]
[1733591857128,1.30836767,3990.3,3990.0,0.17526]
[1733591857333,5.80853202,3990.1,3990.0,0.17526]
[1733591857527,5.80879418,3990.1,3990.0,0.17526]
[1733591858726,5.98405418,3990.1,3990.0,0.17526]
[1733591859131,5.98357673,3990.1,3990.0,0.17526]
[1733591859434,1.07752767,3990.1,3990.0,0.17526]
[1733591859632,5.98405936,3990.1,3990.0,0.17526]
[1733591860439,5.98433129,3990.1,3990.0,0.17526]
[1733591860737,1.07753767,3990.1,3990.0,0.17527]
[1733591861232,1.07753767,3990.1,3989.3,3.2078]
[1733591861233,0.90226767,3990.1,3989.3,3.2078]
[1733591861533,5.00259342,3989.5,3989.4,0.3945]
[1733591862329,1.07755767,3989.5,3989.4,0.3945]
[1733591862630,0.90226767,3989.5,3989.4,0.3945]
[1733591862939,1.07755767,3989.5,3989.4,0.3945]
[1733591863243,5.00149792,3989.5,3989.4,0.56979]
[1733591863434,1.07755767,3989.5,3989.4,0.56979]
[1733591864135,5.00100177,3989.5,3989.4,0.56979]
[1733591864333,1.07755767,3989.5,3989.4,0.56979]
[1733591864636,1.07755767,3989.5,3989.4,5.69208916]
[1733591865137,1.07755767,3989.5,3989.4,11.5972298]
[1733591866337,1.07755767,3989.5,3989.4,11.4219398]
[1733591866537,1.07755767,3989.5,3989.4,11.5972298]
[1733591866934,1.07755767,3989.5,3989.4,5.51679765]
[1733591867634,1.07755767,3989.5,3989.4,5.69208765]
[1733591868036,1.07755767,3989.5,3989.4,5.51679765]
[1733591868337,1.07755767,3989.5,3989.4,5.69208765]
[1733591868949,3.2078,3990.2,3989.4,5.51679765]
[1733591869239,0.90226767,3990.1,3989.9,3.93555271]
[1733591869435,0.90226767,3990.1,3990.0,0.55837]
[1733591870735,0.7862,3990.3,3990.2,0.17526]
[1733591873842,0.90226767,3990.4,3990.3,0.17525]
[1733591874136,3.34340503,3990.7,3990.1,4.0135]
[1733591874339,3.8451727,3991.0,3990.4,3.93555271]
[1733591874541,3.2078,3991.1,3990.6,0.90226767]
[1733591874731,3.2078,3991.1,3991.0,0.17522]
[1733591875133,3.8451727,3991.3,3991.2,0.17521]
[1733591875134,0.90226767,3991.3,3991.2,0.17521]
[1733591875735,3.74560503,3991.4,3990.8,0.7879]
[1733591876044,0.8027,3991.4,3991.3,0.17521]
[1733591876447,0.4022,3991.4,3991.3,0.17521]
[1733591876961,82.13417,3991.5,3991.4,0.17521]
[1733591877149,82.13417,3991.5,3991.4,11.19735729]
[1733591877452,82.13417,3991.5,3991.4,8.50182822]
[1733591877646,82.13417,3991.5,3991.4,21.72695729]
[1733591877846,82.13417,3991.5,3991.4,15.82362822]
[1733591878036,82.13417,3991.5,3991.4,23.69414889]
[1733591878242,82.13417,3991.5,3991.4,15.82362822]
[1733591878441,82.13417,3991.5,3991.4,11.72589589]
[1733591879146,82.13417,3991.5,3991.4,22.61728255]
[1733591879341,82.13417,3991.5,3991.4,16.72589589]
[1733591879535,82.13417,3991.5,3991.4,11.60707767]
[1733591879939,82.13417,3991.5,3991.4,6.60707767]
[1733591881038,82.13417,3991.5,3991.4,11.60707767]
[1733591881244,81.30417,3991.5,3991.4,11.60707767]
[1733591881439,79.5021,3991.5,3991.4,11.60707767]
[1733591881755,77.8481,3991.5,3991.4,11.60707767]
[1733591882043,76.27236,3991.5,3991.4,11.60707767]
[1733591882244,74.69368,3991.5,3991.4,11.60707767]
[1733591882845,74.69368,3991.5,3991.4,6.60707767]
[1733591883142,74.69368,3991.5,3991.4,6.36281]
[1733591884744,74.69368,3991.5,3991.4,5.70481]
[1733591884955,74.69368,3991.5,3991.4,6.36281]
[1733591887153,74.69368,3991.5,3991.4,11.36281]
[1733591888642,74.69368,3991.5,3991.4,5.70481]
[1733591888849,74.69368,3991.5,3991.4,6.36281]
[1733591892357,68.67508231,3991.5,3991.4,11.36281]
[1733591892553,67.23431231,3991.5,3991.4,11.36281]
[1733591892755,66.51169231,3991.5,3991.4,11.36281]
[1733591892959,65.07941231,3991.5,3991.4,11.36281]
[1733591893661,64.37078231,3991.5,3991.4,11.36281]
[1733591893856,63.71877231,3991.5,3991.4,11.36281]
[1733591894053,62.98698231,3991.5,3991.4,11.36281]
[1733591894253,61.86817231,3991.5,3991.4,11.36281]
[1733591894458,59.84458231,3991.5,3991.4,11.36281]
[1733591894759,51.90479567,3991.5,3991.4,15.29026865]
[1733591894960,51.90479567,3991.5,3991.4,22.40060881]
[1733591894961,49.16066567,3991.5,3991.4,22.40060881]
[1733591895161,47.03707567,3991.5,3991.4,16.50942083]
[1733591895361,46.01738567,3991.5,3991.4,16.50942083]
[1733591895663,46.01738567,3991.5,3991.4,15.46262968]
[1733591895861,45.45394567,3991.5,3991.4,15.46262968]
[1733591896062,44.93473567,3991.5,3991.4,14.80462968]
[1733591896253,44.93473567,3991.5,3991.4,12.37953447]
[1733591896460,44.93473567,3991.5,3991.4,12.26507767]
[1733591896763,44.93473567,3991.5,3991.4,7.26507767]
[1733591897158,44.93473567,3991.5,3991.4,7.37962765]
[1733591898166,44.93473567,3991.5,3991.4,12.4578847]
[1733591898666,44.93473567,3991.5,3991.4,7.4578847]
[1733591899268,44.93473567,3991.5,3991.4,4.2500847]
[1733591899568,44.93473567,3991.5,3991.4,7.4578847]
[1733591900171,44.93473567,3991.5,3991.4,7.64147481]
[1733591900671,44.93473567,3991.5,3991.4,12.56321776]
[1733591900870,44.93473567,3991.5,3991.4,7.56321776]
[1733591901167,44.93473567,3991.5,3991.4,7.37985468]
[1733591902269,44.93473567,3991.5,3991.4,12.45811253]
[1733591902676,44.93473567,3991.5,3991.4,11.80011253]
[1733591902865,44.93473567,3991.5,3991.4,7.37985468]
[1733591903069,44.93473567,3991.5,3991.4,7.26507767]
[1733591903374,44.93473567,3991.5,3991.4,6.30824496]
[1733591903574,44.93473567,3991.5,3991.4,6.85127767]
[1733591904169,44.93473567,3991.5,3991.4,6.9663727]
[1733591904467,44.93473567,3991.5,3991.4,6.96638078]
[1733591904868,44.93473567,3991.5,3991.4,12.0446461]
[1733591905175,42.43993567,3991.5,3991.4,12.2288625]
[1733591905366,41.54292567,3991.5,3991.4,12.2288625]
[1733591905674,40.68020567,3991.5,3991.4,12.2288625]
[1733591905876,39.03447567,3991.5,3991.4,12.2288625]
[1733591906077,38.27644567,3991.5,3991.4,12.2288625]
[1733591906276,36.97441567,3991.5,3991.4,12.2288625]
[1733591906468,26.60553689,3991.5,3991.4,12.2288625]
[1733591906974,24.95041689,3991.5,3991.4,12.2288625]
[1733591907281,21.97039689,3991.5,3991.4,12.22642988]
[1733591907978,20.32801689,3991.5,3991.4,12.22642988]
[1733591908279,17.60586685,3991.5,3991.4,11.32416221]
[1733591908471,17.60586685,3991.5,3991.4,12.42685607]
[1733591908777,7.98537438,3991.5,3991.4,25.07858571]
[1733591908975,7.34946438,3991.5,3991.4,25.07858571]
[1733591909177,5.89248438,3991.5,3991.4,34.46027502]
[1733591909473,5.89248438,3991.5,3991.4,26.58975435]
[1733591909474,4.66921438,3991.5,3991.4,26.58975435]
[1733591909868,2.31746729,3991.5,3991.4,24.8375682]
[1733591910073,0.7905,3992.5,3992.4,2.08316]
[1733591910379,0.7905,3992.5,3992.4,7.94592383]
[1733591910675,0.1751,3993.8,3993.3,0.17512]
[1733591910980,0.4116,3993.9,3992.7,0.43787]
[1733591910981,0.7686,3993.7,3993.4,0.90226767]
[1733591911876,0.94371,3993.7,3993.4,0.90226767]
[1733591912083,0.7686,3993.7,3993.4,0.90226767]
[1733591912583,0.7686,3993.7,3993.3,0.17512]
[1733591913484,0.7686,3993.7,3993.4,0.17512]
[1733591913887,0.7686,3993.7,3993.1,3.2078]
[1733591914084,0.7686,3993.7,3993.2,0.07824054]
[1733591914394,0.94371,3993.7,3993.2,0.17512]
[1733591914581,0.7686,3993.7,3993.3,0.17512]
[1733591914781,0.7686,3993.7,3993.4,0.17512]
[1733591914986,0.7686,3993.7,3993.1,3.2078]
[1733591914987,0.7686,3993.7,3993.3,1.95608241]
[1733591915581,0.7686,3993.7,3993.6,0.17511]
[1733591916986,0.7686,3993.7,3993.6,0.83211]
[1733591917179,0.7686,3993.7,3993.6,4.03991]
[1733591918485,0.3916,3993.7,3993.6,5.94791]
[1733591922189,0.4116,3993.9,3993.8,0.1751]
[1733591922384,0.4116,3993.9,3993.8,2.13118241]
[1733591922894,0.4116,3993.9,3993.8,4.03918241]
[1733591923288,0.7816,3994.5,3994.4,0.17507]
[1733591923487,0.7816,3994.5,3994.4,5.99595241]
[1733591924999,0.7816,3994.5,3994.4,7.90395241]
[1733591925892,0.3942,3995.2,3995.1,0.17504]
[1733591926191,0.7973,3995.2,3995.1,2.13112241]
[1733591927794,0.7973,3995.2,3995.0,0.657]
[1733591928094,0.7973,3995.2,3994.8,3.2078]
[1733591928095,0.7973,3995.2,3995.1,0.657]
[1733591928699,0.7973,3995.2,3995.0,0.657]
[1733591929395,0.7973,3995.2,3995.0,0.034]
[1733591930199,0.7973,3995.2,3994.9,2.565]
[1733591930590,0.17505,3995.1,3994.9,2.565]
[1733591931296,0.7973,3995.2,3994.9,2.565]
[1733591931492,0.17504,3995.1,3994.9,2.565]
[1733591931693,0.7973,3995.2,3994.9,2.74005]
[1733591931890,0.97234,3995.2,3994.9,0.83205]
[1733591932094,3.91524503,3995.2,3994.9,0.657]
[1733591932290,3.91524503,3995.2,3994.9,0.14769903]
[1733591932487,3.74020503,3995.2,3994.9,0.32274903]
[1733591932689,3.74020503,3995.2,3994.9,0.14769903]
[1733591933001,3.74020503,3995.2,3994.9,0.32274903]
[1733591933201,3.74020503,3995.2,3994.9,0.14769903]
[1733591933202,0.97234,3995.2,3994.9,0.14769903]
[1733591933893,0.7973,3995.2,3995.1,2.13112241]
[1733591934995,0.7973,3995.2,3995.1,3.86408241]
[1733591936695,0.7973,3995.2,3995.1,2.565]
[1733591936696,0.97234,3995.2,3995.1,2.565]
[1733591937001,0.97234,3995.2,3995.1,1.908]
[1733591937298,0.7973,3995.2,3995.1,1.908]
[1733591937500,0.97234,3995.2,3995.1,1.908]
[1733591937796,0.7973,3995.2,3994.9,0.17505]
[1733591937992,0.17505,3995.0,3994.8,0.657]
[1733591938197,0.4089,3994.9,3994.7,5.16388241]
[1733591938396,0.4089,3994.9,3994.7,5.33894241]
[1733591938700,0.4089,3994.9,3994.8,0.17506]
[1733591941297,0.4089,3994.9,3994.7,5.33894241]
[1733591941599,0.4089,3994.9,3994.7,5.16388241]